[Event "2nd Serbian League-Vojvodina 2023"]
[Site "Novi Sad"]
[Date "2023.11.04"]
[Round "3.22"]
[White "Nagy, Attila N"]
[Black "Mikheev, Stanislav"]
[Result "1/2-1/2"]
[ECO "A30"]
[WhiteElo "2164"]
[BlackElo "2288"]
[Annotator "RC"]
[PlyCount "94"]
[EventDate "2023.10.22"]
[EventType "team-tourn"]
[EventCountry "SRB"]
[SourceTitle "playchess.com"]
[Source "ChessBase"]
[SourceQuality "1"]
[TimeControl "40/5400+30:1800+30"]

1. Nf3 {[%emt 1:31:00]} Nf6 {[%emt 1:31:00]} 2. c4 {[%emt 0:00:30]} c5 {[%emt 0:00:30]} 3. Nc3 {[%emt 0:00:30]} e6 {[%emt 0:00:30]} 4. g3 {[%emt 0:00:30]} b6 {[%emt 0:00:30]} 5. Bg2 {[%emt 0:00:30]} Bb7 {[%emt 0:00:30]} 6. O-O {[%emt 0:00:30]} Be7 {[%emt 0:00:30]} 7. d4 {[%emt 0:00:30]} cxd4 {[%emt 0:00:30]} 8. Qxd4 {[%emt 0:00:30]} d6 {[%emt 0:00:30]} 9. b3 {[%emt 0:00:30]} a6 {[%emt 0:00:30]} 10. Ba3 {[%emt 0:00:30]} O-O {[%emt 0:00:30]} 11. Rfd1 {[%emt 0:00:30]} Ne8 {[%emt 0:00:30]} 12. Ne4 {[%emt 0:00:30]} Ra7 {[%emt 0:00:30]} 13. c5 {[%emt 0:00:30]} bxc5 {[%emt 0:00:30]} 14. Bxc5 {[%emt 0:00:30]} Nc6 {[%emt 0:00:30]} 15. Qe3 {[%emt 0:00:30]} Ra8 {[%emt 0:00:30]} 16. Bb6 {[%emt 0:00:30]} Qb8 {[%emt 0:00:30]} 17. Rac1 {[%emt 0:00:30]} Nc7 {[%emt 0:00:30]} 18. Bxc7 {[%emt 0:00:30]} Qxc7 {[%emt 0:00:30]} 19. Nd4 {[%emt 0:00:30]} d5 {[%emt 0:00:30]} 20. Nc5 {[%emt 0:00:30]} Bxc5 {[%emt 0:00:30]} 21. Rxc5 {[%emt 0:00:30]} Qd6 {[%emt 0:00:30]} 22. Nxc6 {[%emt 0:00:30]} Bxc6 {[%emt 0:00:30]} 23. Rdc1 {[%emt 0:00:30]} Bd7 {[%emt 0:00:30]} 24. Qd4 {[%emt 0:00:30]} Rac8 {[%emt 0:00:30]} 25. e4 {[%emt 0:00:30]} Rxc5 {[%emt 0:00:30]} 26. Rxc5 {[%emt 0:00:30]} Bc6 {[%emt 0:00:30]} 27. exd5 {[%emt 0:00:30]} Bxd5 {[%emt 0:00:30]} 28. Bxd5 {[%emt 0:00:30]} Rd8 {[%emt 0:00:30]} 29. Ra5 {[%emt 0:00:30]} exd5 {[%emt 0:00:30]} 30. b4 {[%emt 0:00:30]} g6 {[%emt 0:00:30]} 31. a3 {[%emt 0:00:30]} h5 {[%emt 0:00:30]} 32. h4 {[%emt 0:00:30]} Qc6 {[%emt 0:00:30]} 33. Rc5 {[%emt 0:00:30]} Qe6 {[%emt 0:00:30]} 34. Kg2 {[%emt 0:00:30]} Kh7 {[%emt 0:00:30]} 35. Rc7 {[%emt 0:00:30]} Kg8 {[%emt 0:00:30]} 36. Qe3 {[%emt 0:00:30]} Qxe3 {[%emt 0:00:30]} 37. fxe3 {[%emt 0:00:30]} d4 {[%emt 0:00:30]} 38. exd4 {[%emt 0:00:30]} Rxd4 {[%emt 0:00:30]} 39. Rc6 {[%emt 0:00:30]} a5 {[%emt 0:00:30]} 40. b5 {[%emt 0:00:30]} Rd2+ {[%emt 0:00:30]} 41. Kh3 {[%emt 0:30:30]} Rb2 {[%emt 0:30:30]} 42. b6 {[%emt 0:00:30]} Kg7 {[%emt 0:00:30]} 43. a4 {[%emt 0:00:30]} Rb4 {[%emt 0:00:30]} 44. Rc5 {[%emt 0:00:30]} Rxb6 {[%emt 0:00:30]} 45. Rxa5 {[%emt 0:00:30]} Rb2 {[%emt 0:00:30]} 46. Ra6 {[%emt 0:00:30]} Ra2 47. Ra5 {[%emt 0:00:30]} f6 {[%emt 0:01:00]} 1/2-1/2

[Event "2nd Serbian League-Vojvodina 2023"]
[Site "Novi Sad"]
[Date "2023.11.04"]
[Round "3.23"]
[White "Bulajic, Ratko"]
[Black "Gusev, Mikhail"]
[Result "1-0"]
[ECO "A43"]
[WhiteElo "2075"]
[BlackElo "2012"]
[Annotator "NA RC"]
[PlyCount "66"]
[EventDate "2023.10.22"]
[EventType "team-tourn"]
[EventCountry "SRB"]
[SourceTitle "playchess.com"]
[Source "ChessBase"]
[SourceQuality "1"]
[TimeControl "40/5400+30:1800+30"]

1. d4 {[%emt 1:31:00]} Nf6 {[%emt 1:31:00]} 2. Nf3 {[%emt 0:00:30]} c5 {[%emt 0:00:30]} 3. d5 {[%emt 0:00:30]} g6 {[%emt 0:00:30]} 4. Nc3 {[%emt 0:00:30]} d6 {[%emt 0:00:30]} 5. e4 {[%emt 0:00:30]} Bg7 {[%emt 0:00:30]} 6. h3 {[%emt 0:00:30]} O-O {[%emt 0:00:30]} 7. Bf4 {[%emt 0:00:30]} Na6 {[%emt 0:00:30]} 8. Qd2 {[%emt 0:00:30]} Nc7 {[%emt 0:00:30]} 9. a4 {[%emt 0:00:30]} b6 {[%emt 0:00:30]} 10. Bc4 {[%emt 0:00:30]} Bb7 {[%emt 0:00:30]} 11. O-O {[%emt 0:00:30]} a6 {[%emt 0:00:30]} 12. Rfe1 {[%emt 0:00:30]} Nh5 {[%emt 0:00:30]} 13. Bh2 {[%emt 0:00:30]} Qd7 {[%emt 0:00:30]} 14. e5 {[%emt 0:00:30]} b5 {[%emt 0:00:30]} 15. Bf1 {[%emt 0:00:30]} b4 {[%emt 0:00:30]} 16. Ne4 {[%emt 0:00:30]} Nxd5 {[%emt 0:00:30]} 17. exd6 {[%emt 0:00:30]} exd6 {[%emt 0:00:30]} 18. Bxd6 {[%emt 0:00:30]} Rfc8 {[%emt 0:00:30]} 19. Ne5 {[%emt 0:00:30]} Qd8 {[%emt 0:00:30]} 20. Bc4 {[%emt 0:00:30]} Nhf4 {[%emt 0:00:30]} 21. Nxf7 {[%emt 0:00:30]} Qh4 {[%emt 0:00:30]} 22. Bxf4 {[%emt 0:00:30]} Nxf4 {[%emt 0:00:30]} 23. Nfd6+ {[%emt 0:00:30]} Kh8 {[%emt 0:00:30]} 24. Nxb7 {[%emt 0:00:30]} Rf8 {[%emt 0:00:30]} 25. c3 {[%emt 0:00:30]} Rae8 26. Nbd6 {[%emt 0:00:30]} Bh6 {[%emt 0:01:00]} 27. Qd1 {[%emt 0:00:30]} Re5 {[%emt 0:00:30]} 28. Nf7+ {[%emt 0:00:30]} Rxf7 {[%emt 0:00:30]} 29. Bxf7 Qe7 {[%emt 0:00:30]} 30. Nd6 {[%emt 0:01:00]} Rxe1+ {[%emt 0:00:30]} 31. Qxe1 {[%emt 0:00:30]} Qxd6 {[%emt 0:00:30]} 32. Rd1 Qc7 {[%emt 0:00:30]} 33. Qe8+ {[%emt 0:01:00]} Kg7 1-0

[Event "2nd Serbian League-Vojvodina 2023"]
[Site "Novi Sad"]
[Date "2023.11.04"]
[Round "3.24"]
[White "Vranic, Ljubomir"]
[Black "Roganovic, Nebojsa"]
[Result "0-1"]
[ECO "D00"]
[WhiteElo "2090"]
[BlackElo "2129"]
[Annotator "RC"]
[PlyCount "35"]
[EventDate "2023.10.22"]
[EventType "team-tourn"]
[EventCountry "SRB"]
[SourceTitle "playchess.com"]
[Source "ChessBase"]
[SourceQuality "1"]
[TimeControl "40/5400+30:1800+30"]

1. d4 {[%emt 0:01:15]} d5 2. Nc3 {[%emt 1:30:15]} Bf5 {[%emt 1:31:30]} 3. Bf4 {[%emt 0:00:30]} c6 {[%emt 0:00:30]} 4. e3 {[%emt 0:00:00]} Nf6 {[%emt 0:00:00]} 5. f3 {[%emt 0:00:00]} h6 6. g4 {[%emt 0:00:00]} Bh7 7. Bd3 {[%emt 0:02:00]} e6 {[%emt 0:02:00]} 8. Nge2 {[%emt 0:00:30]} Nbd7 {[%emt 0:00:00]} 9. Qd2 {[%emt 0:00:00]} Bxd3 10. Qxd3 {[%emt 0:01:00]} b5 {[%emt 0:01:30]} 11. a3 {[%emt 0:00:00]} a5 12. Nd1 {[%emt 0:01:00]} Qb6 {[%emt 0:00:00]} 13. Nec3 {[%emt 0:00:00]} g5 {[%emt 0:00:00]} 14. Bg3 {[%emt 0:00:00]} h5 {[%emt 0:00:00]} 15. gxh5 Nxh5 16. Bf2 {[%emt 0:02:00]} Bh6 {[%emt 0:00:00]} 17. Ne2 {[%emt 0:00:00]} O-O-O {[%emt 0:00:00]} 18. Ndc3 {[%emt 0:00:00]} 0-1

[Event "2nd Serbian League-Vojvodina 2023"]
[Site "Novi Sad"]
[Date "2023.11.04"]
[Round "4.1"]
[White "Balla, Tamas-Kristof"]
[Black "Nevednichy, Vladislav"]
[Result "0-1"]
[ECO "D00"]
[WhiteElo "2308"]
[BlackElo "2447"]
[Annotator "ChessBase"]
[PlyCount "74"]
[EventDate "2023.10.22"]
[EventType "team-tourn"]
[EventCountry "SRB"]
[SourceTitle "playchess.com"]
[Source "ChessBase"]
[SourceQuality "1"]
[TimeControl "40/5400+30:1800+30"]

1. d4 {[%emt 0:02:07]} Nf6 {[%emt 0:00:03]} 2. Nc3 {[%emt 0:00:06]} d5 {[%emt 0:01:03]} 3. Bf4 {[%emt 0:00:09]} a6 {[%emt 0:00:54]} 4. e3 {[%emt 0:00:09]} e6 {[%emt 0:00:32]} 5. a3 {[%emt 0:00:07]} c5 {[%emt 0:00:30]} 6. Nf3 {[%emt 0:00:08]} Nc6 {[%emt 0:00:29]} 7. Bd3 {[%emt 0:00:41]} c4 {[%emt 0:05:13]} 8. Be2 {[%emt 0:00:10]} b5 {[%emt 0:00:08]} 9. Ne5 {[%emt 0:04:20]} Bb7 {[%emt 0:00:29]} 10. O-O {[%emt 0:00:52]} Be7 {[%emt 0:01:15]} 11. Bf3 {[%emt 0:02:20]} O-O {[%emt 0:00:35]} 12. h3 {[%emt 0:08:42]} Re8 {[%emt 1:25:19]} 13. g4 {[%emt 0:02:44]} Nxe5 {[%emt 0:00:00]} 14. Bxe5 {[%emt 0:00:26]} Bc6 {[%emt 0:00:00]} 15. Bg2 {[%emt 0:14:28]} a5 {[%emt 0:00:00]} 16. Ne2 {[%emt 0:03:39]} b4 {[%emt 0:00:00]} 17. a4 {[%emt 0:01:31]} Nd7 {[%emt 0:00:00]} 18. Bh2 {[%emt 0:00:51]} Nb6 {[%emt 0:00:00]} 19. b3 {[%emt 0:00:10]} Bb7 {[%emt 0:00:00]} 20. f4 {[%emt 0:03:31]} Ba6 {[%emt 0:00:00]} 21. g5 {[%emt 0:02:17]} Rc8 {[%emt 0:00:00]} 22. Rf2 {[%emt 0:01:55]} Rc6 {[%emt 0:00:00]} 23. h4 {[%emt 0:00:45]} g6 {[%emt 0:00:00]} 24. h5 {[%emt 0:02:17]} Nc8 {[%emt 0:00:00]} 25. Ng3 {[%emt 0:17:41]} Nd6 {[%emt 0:00:00]} 26. Kh1 {[%emt 0:01:13]} cxb3 {[%emt 0:00:00]} 27. cxb3 {[%emt 0:00:17]} Rc3 {[%emt 0:00:00]} 28. e4 {[%emt 0:06:54]} dxe4 {[%emt 0:00:00]} 29. Nxe4 {[%emt 0:00:15]} Nxe4 {[%emt 0:00:00]} 30. Bxe4 {[%emt 0:00:07]} Qd7 {[%emt 0:00:00]} 31. Rd2 {[%emt 0:05:46]} Bb7 {[%emt 0:00:00]} 32. d5 {[%emt 0:00:10]} Bxd5 {[%emt 0:00:00]} 33. Bxd5 {[%emt 0:04:29]} exd5 {[%emt 0:00:00]} 34. Rxd5 {[%emt 0:02:33]} Qc6 {[%emt 0:00:00]} 35. Kg1 {[%emt 0:00:05]} Bc5+ {[%emt 0:00:00]} 36. Kf1 {[%emt 0:00:06]} Qe6 {[%emt 0:00:00]} 37. f5 {[%emt 0:02:16]} Qe4 {[%emt 0:00:00]} 0-1

[Event "2nd Serbian League-Vojvodina 2023"]
[Site "Novi Sad"]
[Date "2023.11.04"]
[Round "4.2"]
[White "Stoleriu, George"]
[Black "Kopasz, Robert"]
[Result "1-0"]
[ECO "C77"]
[WhiteElo "2400"]
[BlackElo "2241"]
[Annotator "ChessBase"]
[PlyCount "105"]
[EventDate "2023.10.22"]
[EventType "team-tourn"]
[EventCountry "SRB"]
[SourceTitle "playchess.com"]
[Source "ChessBase"]
[SourceQuality "1"]
[TimeControl "40/5400+30:1800+30"]

1. e4 {[%emt 0:00:03]} e5 {[%emt 0:01:17]} 2. Nf3 {[%emt 0:00:06]} Nc6 {[%emt 0:00:06]} 3. Bb5 {[%emt 0:00:05]} a6 {[%emt 0:00:33]} 4. Ba4 {[%emt 0:00:04]} Nf6 {[%emt 0:00:21]} 5. d3 {[%emt 0:00:05]} d6 {[%emt 0:01:58]} 6. c4 {[%emt 0:01:58]} Be7 {[%emt 0:00:34]} 7. h3 {[%emt 0:01:18]} O-O {[%emt 0:02:45]} 8. Nc3 {[%emt 0:00:23]} Bd7 {[%emt 0:03:35]} 9. O-O {[%emt 0:01:03]} Nb8 {[%emt 0:03:28]} 10. d4 {[%emt 0:02:53]} Bxa4 {[%emt 0:03:47]} 11. Qxa4 {[%emt 0:00:05]} Nc6 {[%emt 0:01:30]} 12. d5 {[%emt 0:25:43]} Nd4 {[%emt 0:01:14]} 13. Qd1 {[%emt 0:00:03]} Nxf3+ {[%emt 0:01:49]} 14. Qxf3 {[%emt 0:00:03]} Nd7 {[%emt 0:00:20]} 15. Qg3 {[%emt 0:05:45]} Kh8 {[%emt 0:04:18]} 16. Rb1 {[%emt 0:00:36]} h6 {[%emt 1:10:55]} 17. b4 {[%emt 0:10:56]} b6 {[%emt 0:00:00]} 18. Ne2 {[%emt 0:08:49]} Bg5 {[%emt 0:00:00]} 19. Bb2 {[%emt 0:01:09]} Qe7 {[%emt 0:00:00]} 20. Qc3 {[%emt 0:04:38]} Bf6 {[%emt 0:00:00]} 21. Nc1 {[%emt 0:00:41]} g6 {[%emt 0:00:00]} 22. Nb3 {[%emt 0:01:42]} Bg7 {[%emt 0:00:00]} 23. c5 {[%emt 0:04:14]} f5 {[%emt 0:00:00]} 24. Qc2 {[%emt 0:04:48]} fxe4 {[%emt 0:00:00]} 25. Qxe4 {[%emt 0:01:08]} Kh7 {[%emt 0:00:00]} 26. cxb6 {[%emt 0:04:53]} cxb6 {[%emt 0:00:00]} 27. Rbc1 {[%emt 0:13:02]} Nf6 {[%emt 0:00:00]} 28. Qd3 {[%emt 0:00:26]} Nh5 {[%emt 0:00:00]} 29. Rc4 {[%emt 0:04:24]} b5 {[%emt 0:00:00]} 30. Rc6 {[%emt 0:01:34]} Rf7 {[%emt 0:00:00]} 31. Bc1 {[%emt 0:00:30]} Raf8 {[%emt 0:00:00]} 32. Be3 {[%emt 0:00:03]} Nf4 {[%emt 0:00:00]} 33. Qe4 {[%emt 0:01:05]} Rf5 {[%emt 0:01:47]} 34. Re1 {[%emt 0:00:26]} Qd7 {[%emt 0:00:32]} 35. Rxa6 {[%emt 0:01:02]} Rg5 {[%emt 0:00:19]} 36. Bxf4 {[%emt 0:00:14]} Rxf4 {[%emt 0:00:16]} 37. Qe3 {[%emt 0:00:03]} Rxb4 {[%emt 0:02:23]} 38. Nd2 {[%emt 0:00:03]} e4 {[%emt 0:01:43]} 39. Nxe4 {[%emt 0:00:04]} Re5 {[%emt 0:00:51]} 40. Nf6+ {[%emt 0:00:11]} Bxf6 {[%emt 0:00:54]} 41. Ra7 {[%emt 0:30:04]} Qg7 {[%emt 0:30:57]} 42. Rxg7+ {[%emt 0:01:06]} Bxg7 {[%emt 0:00:01]} 43. Qc3 {[%emt 0:01:52]} Rc4 {[%emt 0:00:31]} 44. Qa1 {[%emt 0:00:29]} Rxd5 {[%emt 0:01:41]} 45. Qb1 {[%emt 0:00:59]} Rcd4 {[%emt 0:00:27]} 46. Qc2 {[%emt 0:01:37]} Re5 {[%emt 0:00:47]} 47. Rb1 {[%emt 0:00:30]} b4 {[%emt 0:00:14]} 48. g3 {[%emt 0:00:18]} h5 {[%emt 0:00:30]} 49. Kg2 {[%emt 0:00:26]} Rc5 {[%emt 0:00:38]} 50. Qe2 {[%emt 0:00:29]} Re5 {[%emt 0:00:08]} 51. Qf3 {[%emt 0:01:00]} Rf5 {[%emt 0:01:16]} 52. Qe3 {[%emt 0:00:16]} Re5 {[%emt 0:00:02]} 53. Qxd4 {[%emt 0:00:03]} 1-0

[Event "2nd Serbian League-Vojvodina 2023"]
[Site "Novi Sad"]
[Date "2023.11.04"]
[Round "4.3"]
[White "Gusev, Mikhail"]
[Black "Sekulic, Dusan"]
[Result "1-0"]
[ECO "C64"]
[WhiteElo "2012"]
[BlackElo "2145"]
[Annotator "NA"]
[PlyCount "85"]
[EventDate "2023.10.22"]
[EventType "team-tourn"]
[EventCountry "SRB"]
[SourceTitle "playchess.com"]
[Source "ChessBase"]
[SourceQuality "1"]
[TimeControl "40/5400+30:1800+30"]

1. e4 {[%emt 0:00:07]} e5 {[%emt 0:00:13]} 2. Nf3 {[%emt 0:00:07]} Nc6 {[%emt 0:00:03]} 3. Bb5 {[%emt 0:00:04]} a6 {[%emt 0:01:08]} 4. Ba4 {[%emt 0:00:10]} Bc5 {[%emt 0:00:27]} 5. c3 {[%emt 0:00:22]} Nge7 {[%emt 0:08:05]} 6. O-O {[%emt 0:01:55]} Ng6 {[%emt 0:09:10]} 7. d4 {[%emt 0:02:55]} Ba7 {[%emt 0:02:17]} 8. Bxc6 {[%emt 0:03:57]} dxc6 {[%emt 0:02:35]} 9. Nxe5 {[%emt 0:02:19]} Nxe5 {[%emt 0:03:48]} 10. dxe5 {[%emt 0:00:02]} Qh4 {[%emt 0:01:13]} 11. Qf3 {[%emt 0:03:10]} Bg4 {[%emt 0:09:56]} 12. Qf4 {[%emt 0:04:55]} O-O-O {[%emt 0:07:10]} 13. h3 {[%emt 0:03:49]} h5 {[%emt 0:01:04]} 14. Qg5 {[%emt 0:03:57]} Qxg5 {[%emt 0:08:44]} 15. Bxg5 {[%emt 0:00:07]} Rd3 {[%emt 0:00:09]} 16. hxg4 {[%emt 0:05:08]} hxg4 {[%emt 0:00:21]} 17. Re1 {[%emt 0:00:15]} g3 {[%emt 0:02:13]} 18. Be3 {[%emt 0:00:15]} Bxe3 {[%emt 0:05:23]} 19. fxe3 {[%emt 0:00:09]} Rh2 {[%emt 0:05:55]} 20. b4 {[%emt 0:03:01]} Kd7 {[%emt 0:01:36]} 21. a4 {[%emt 0:02:30]} Ke6 {[%emt 0:00:55]} 22. Ra2 {[%emt 0:01:50]} Kxe5 {[%emt 0:05:00]} 23. Nd2 {[%emt 0:03:47]} Rh5 {[%emt 0:02:13]} 24. Rc2 {[%emt 0:01:25]} g6 {[%emt 0:09:07]} 25. Kf1 {[%emt 0:04:50]} Rh1+ {[%emt 0:03:59]} 26. Ke2 {[%emt 0:00:02]} Rxe3+ {[%emt 0:03:16]} 27. Kxe3 {[%emt 0:00:18]} Rxe1+ {[%emt 0:00:25]} 28. Kf3 {[%emt 0:00:15]} b5 {[%emt 0:01:18]} 29. Kxg3 {[%emt 0:02:13]} Re3+ {[%emt 0:00:41]} 30. Kf2 {[%emt 0:00:05]} Rd3 {[%emt 0:00:14]} 31. a5 {[%emt 0:00:23]} c5 {[%emt 0:02:28]} 32. Nf3+ {[%emt 0:02:23]} Kd6 {[%emt 0:02:30]} 33. Rd2 {[%emt 0:00:38]} Rxd2+ {[%emt 0:00:54]} 34. Nxd2 {[%emt 0:00:02]} cxb4 {[%emt 0:00:09]} 35. cxb4 {[%emt 0:00:04]} c5 {[%emt 0:00:22]} 36. Ke3 {[%emt 0:00:37]} f6 {[%emt 0:01:00]} 37. Nb3 {[%emt 0:00:20]} cxb4 {[%emt 0:01:32]} 38. Kd4 {[%emt 0:00:09]} Kc6 {[%emt 0:01:57]} 39. Nc5 {[%emt 0:00:27]} f5 {[%emt 0:00:00]} 40. exf5 {[%emt 0:00:15]} gxf5 {[%emt 0:00:00]} 41. Nxa6 {[%emt 0:30:08]} b3 {[%emt 0:30:01]} 42. Nb4+ {[%emt 0:00:08]} Kb7 {[%emt 0:00:20]} 43. Kc3 {[%emt 0:00:06]} 1-0

[Event "2nd Serbian League-Vojvodina 2023"]
[Site "Novi Sad"]
[Date "2023.11.04"]
[Round "4.4"]
[White "Kovacevic, Sinisa"]
[Black "Levitan, Judah Nathan"]
[Result "1/2-1/2"]
[ECO "D38"]
[WhiteElo "2240"]
[BlackElo "1937"]
[Annotator "ChessBase"]
[PlyCount "58"]
[EventDate "2023.10.22"]
[EventType "team-tourn"]
[EventCountry "SRB"]
[SourceTitle "playchess.com"]
[Source "ChessBase"]
[SourceQuality "1"]
[TimeControl "40/5400+30:1800+30"]

1. d4 {[%emt 0:00:05]} Nf6 {[%emt 0:00:03]} 2. c4 {[%emt 0:00:27]} e6 {[%emt 0:00:02]} 3. Nf3 {[%emt 0:00:05]} d5 {[%emt 0:00:05]} 4. Nc3 {[%emt 0:00:13]} Bb4 {[%emt 0:00:03]} 5. cxd5 {[%emt 0:00:53]} exd5 {[%emt 0:01:10]} 6. Bg5 {[%emt 0:01:51]} c6 {[%emt 0:02:47]} 7. Qb3 {[%emt 0:00:57]} Be7 {[%emt 0:01:51]} 8. e3 {[%emt 0:01:21]} Qb6 {[%emt 0:03:37]} 9. Qc2 {[%emt 0:08:34]} O-O {[%emt 0:03:28]} 10. Bd3 {[%emt 0:00:19]} h6 {[%emt 0:00:19]} 11. Bh4 {[%emt 0:00:22]} Be6 {[%emt 0:02:46]} 12. O-O {[%emt 0:01:21]} Nbd7 {[%emt 0:01:04]} 13. Ne5 {[%emt 0:00:48]} Bd6 {[%emt 0:03:07]} 14. f4 {[%emt 0:01:50]} Ng4 {[%emt 0:31:10]} 15. Nxg4 {[%emt 0:10:51]} Bxg4 {[%emt 0:00:06]} 16. h3 {[%emt 0:00:09]} Bh5 {[%emt 0:00:19]} 17. g4 {[%emt 0:01:16]} Bg6 {[%emt 0:00:37]} 18. Bxg6 {[%emt 0:00:11]} fxg6 {[%emt 0:00:04]} 19. Qxg6 {[%emt 0:00:41]} Bc7 {[%emt 0:18:06]} 20. Rf2 {[%emt 0:06:21]} Rae8 {[%emt 0:07:26]} 21. Re1 {[%emt 0:01:53]} c5 {[%emt 0:04:37]} 22. Qxb6 {[%emt 0:00:37]} Bxb6 {[%emt 0:00:06]} 23. Nxd5 {[%emt 0:01:29]} cxd4 {[%emt 0:00:16]} 24. e4 {[%emt 0:02:11]} Nc5 {[%emt 0:02:53]} 25. Nxb6 {[%emt 0:27:45]} axb6 {[%emt 0:01:27]} 26. Rd2 {[%emt 0:01:10]} Rxf4 {[%emt 0:07:21]} 27. Rxd4 {[%emt 0:00:55]} Rfxe4 {[%emt 0:01:44]} 28. Rexe4 {[%emt 0:01:04]} Rxe4 {[%emt 0:00:15]} 29. Rd6 {[%emt 0:06:21]} Re6 {[%emt 0:01:45]} 1/2-1/2

[Event "2nd Serbian League-Vojvodina 2023"]
[Site "Novi Sad"]
[Date "2023.11.04"]
[Round "4.5"]
[White "Molnar Gabor, Roland"]
[Black "Parezanin, Darko"]
[Result "0-1"]
[ECO "B07"]
[WhiteElo "2041"]
[BlackElo "2192"]
[Annotator "ChessBase"]
[PlyCount "78"]
[EventDate "2023.10.22"]
[EventType "team-tourn"]
[EventCountry "SRB"]
[SourceTitle "playchess.com"]
[Source "ChessBase"]
[SourceQuality "1"]
[TimeControl "40/5400+30:1800+30"]

1. e4 {[%emt 0:00:02]} d6 {[%emt 0:00:12]} 2. d4 {[%emt 0:00:13]} Nf6 {[%emt 0:00:31]} 3. Nc3 {[%emt 0:00:29]} g6 {[%emt 0:00:06]} 4. Be3 {[%emt 0:00:29]} Bg7 {[%emt 0:02:14]} 5. Qd2 {[%emt 0:00:45]} c6 {[%emt 0:02:11]} 6. Bh6 {[%emt 0:03:52]} Bxh6 {[%emt 0:00:28]} 7. Qxh6 {[%emt 0:00:35]} Qa5 {[%emt 0:00:58]} 8. Bd3 {[%emt 0:11:29]} b5 {[%emt 0:01:50]} 9. h3 {[%emt 0:14:41]} b4 {[%emt 0:06:14]} 10. Nce2 {[%emt 0:01:12]} b3+ {[%emt 0:10:05]} 11. Nc3 {[%emt 0:04:34]} bxc2 {[%emt 0:00:09]} 12. Nge2 {[%emt 0:14:00]} Na6 {[%emt 0:00:38]} 13. O-O {[%emt 0:10:10]} Nb4 {[%emt 0:00:28]} 14. Bc4 {[%emt 0:00:58]} Ba6 {[%emt 0:03:02]} 15. Qg7 {[%emt 0:05:25]} Rf8 {[%emt 0:00:10]} 16. Bxa6 {[%emt 0:00:43]} Qxa6 {[%emt 0:04:09]} 17. e5 {[%emt 0:03:59]} dxe5 {[%emt 0:02:14]} 18. dxe5 {[%emt 0:00:37]} Nfd5 {[%emt 0:00:16]} 19. Rac1 {[%emt 0:14:46]} Qd3 {[%emt 0:05:42]} 20. a3 {[%emt 0:02:48]} Nxc3 {[%emt 0:02:37]} 21. Nxc3 {[%emt 0:02:22]} Nd5 {[%emt 0:00:02]} 22. Rfe1 {[%emt 0:05:34]} Nxc3 {[%emt 0:05:13]} 23. bxc3 {[%emt 0:00:07]} Qd2 {[%emt 0:26:59]} 24. Qxh7 {[%emt 0:01:52]} O-O-O {[%emt 0:00:29]} 25. Qh4 {[%emt 0:00:36]} Rd3 {[%emt 0:16:18]} 26. Qxe7 {[%emt 0:00:40]} Rfd8 {[%emt 0:00:04]} 27. Qxf7 {[%emt 0:00:29]} Qxe1+ {[%emt 0:02:51]} 28. Rxe1 {[%emt 0:00:05]} Rd1 {[%emt 0:00:03]} 29. Qe6+ {[%emt 0:00:56]} Kc7 {[%emt 0:00:38]} 30. Qe7+ {[%emt 0:00:29]} R8d7 {[%emt 0:00:09]} 31. Qc5 {[%emt 0:00:31]} Rxe1+ {[%emt 0:00:30]} 32. Kh2 {[%emt 0:00:03]} c1=Q {[%emt 0:01:34]} 33. Qxa7+ {[%emt 0:00:02]} Kd8 {[%emt 0:00:23]} 34. Qb8+ {[%emt 0:00:42]} Ke7 {[%emt 0:00:09]} 35. Qb4+ {[%emt 0:00:08]} Kf7 {[%emt 0:01:30]} 36. Qg4 {[%emt 0:01:12]} Rd3 {[%emt 0:01:40]} 37. e6+ {[%emt 0:00:20]} Kg7 {[%emt 0:00:31]} 38. f3 {[%emt 0:00:47]} Qxc3 {[%emt 0:02:14]} 39. f4 {[%emt 0:00:46]} Qd4 {[%emt 0:00:24]} 0-1